[Event "Titled Tuesday Blitz July 25 Early 2023"]
[White "Lopez Del Alamo, Antonio"]
[Black "Seemann, Jakub"]
[WhiteFideId "2227339"]
[BlackFideId "21874697"]
[WhiteElo "2343"]
[BlackElo "2659"]
[Result "0-1"]
[Round "1"]
[TimeControl "180+2"]
[Date "2023.07.25"]
[WhiteClock "0:00:06"]
[BlackClock "0:00:22"]
[Board "149"]

1. e4 {[%clk 0:03:00]}  c6 {[%clk 0:02:58]} 2. d4 {[%clk 0:02:59]}  d5 {[%clk 0:02:58]} 3. e5 {[%clk 0:02:57]}  Bf5 {[%clk 0:02:57]} 4. Nf3 {[%clk 0:02:54]}  e6 {[%clk 0:02:55]} 5. Be2 {[%clk 0:02:53]}  Nd7 {[%clk 0:02:55]} 6. O-O {[%clk 0:02:53]}  a5 {[%clk 0:02:51]} 7. a4 {[%clk 0:02:51]}  f6 {[%clk 0:02:48]} 8. exf6 {[%clk 0:02:42]}  Qxf6 {[%clk 0:02:49]} 9. Re1 {[%clk 0:02:32]}  Bd6 {[%clk 0:02:38]} 10. Bd3 {[%clk 0:02:15]}  Ne7 {[%clk 0:02:31]} 11. Bg5 {[%clk 0:02:07]}  Qf7 {[%clk 0:02:27]} 12. Bxe7 {[%clk 0:02:06]}  Kxe7 {[%clk 0:02:16]} 13. Ng5 {[%clk 0:01:38]}  Qf6 {[%clk 0:02:03]} 14. Bxf5 {[%clk 0:01:31]}  Qxf5 {[%clk 0:02:04]} 15. Nxe6 {[%clk 0:01:24]}  Kf7 {[%clk 0:02:03]} 16. Qf3 {[%clk 0:00:58]}  Qxf3 {[%clk 0:01:58]} 17. Ng5+ {[%clk 0:00:58]}  Kf6 {[%clk 0:01:53]} 18. Nxf3 {[%clk 0:00:59]}  Rhe8 {[%clk 0:01:53]} 19. Nbd2 {[%clk 0:00:57]}  g5 {[%clk 0:01:50]} 20. h3 {[%clk 0:00:53]}  h5 {[%clk 0:01:49]} 21. g4 {[%clk 0:00:47]}  hxg4 {[%clk 0:01:48]} 22. hxg4 {[%clk 0:00:48]}  Kg6 {[%clk 0:01:42]} 23. Kg2 {[%clk 0:00:48]}  Nf6 {[%clk 0:01:42]} 24. Nf1 {[%clk 0:00:28]}  Nxg4 {[%clk 0:01:27]} 25. Ng3 {[%clk 0:00:12]}  Bf4 {[%clk 0:00:43]} 26. c3 {[%clk 0:00:08]}  Nf6 {[%clk 0:00:34]} 27. Ne5+ {[%clk 0:00:08]}  Bxe5 {[%clk 0:00:33]} 28. dxe5 {[%clk 0:00:08]}  Ng4 {[%clk 0:00:33]} 29. e6 {[%clk 0:00:07]}  Kf6 {[%clk 0:00:32]} 30. Kf3 {[%clk 0:00:07]}  Ne5+ {[%clk 0:00:31]} 31. Rxe5 {[%clk 0:00:07]}  Kxe5 {[%clk 0:00:31]} 32. Re1+ {[%clk 0:00:08]}  Kf6 {[%clk 0:00:30]} 33. Nh5+ {[%clk 0:00:05]}  Kg6 {[%clk 0:00:30]} 34. Kg4 {[%clk 0:00:05]}  Rh8 {[%clk 0:00:24]} 35. Ng3 {[%clk 0:00:06]}  Raf8 {[%clk 0:00:22]} 0-1


[Site "https://www.chess.com"]

[Event "Titled Tuesday Blitz July 25 Early 2023"]
[White "Sagita, Catur Adi"]
[Black "Ncatt"]
[WhiteFideId "7104618"]
[WhiteElo "2651"]
[BlackElo "2336"]
[Result "1/2-1/2"]
[Round "1"]
[TimeControl "180+2"]
[Date "2023.07.25"]
[WhiteClock "0:00:34"]
[BlackClock "0:01:31"]
[Board "152"]

1. e4 {[%clk 0:02:58]}  c5 {[%clk 0:02:56]} 2. Nf3 {[%clk 0:02:48]}  Nc6 {[%clk 0:02:57]} 3. d4 {[%clk 0:02:47]}  cxd4 {[%clk 0:02:57]} 4. Nxd4 {[%clk 0:02:48]}  Nf6 {[%clk 0:02:57]} 5. Nc3 {[%clk 0:02:44]}  e6 {[%clk 0:02:58]} 6. Nxc6 {[%clk 0:02:39]}  bxc6 {[%clk 0:02:56]} 7. e5 {[%clk 0:02:40]}  Nd5 {[%clk 0:02:56]} 8. Ne4 {[%clk 0:02:40]}  Qc7 {[%clk 0:02:55]} 9. f4 {[%clk 0:02:39]}  Qb6 {[%clk 0:02:55]} 10. c4 {[%clk 0:02:36]}  Bb4+ {[%clk 0:02:55]} 11. Ke2 {[%clk 0:02:35]}  f5 {[%clk 0:02:52]} 12. Nf2 {[%clk 0:02:29]}  Ne7 {[%clk 0:02:48]} 13. Be3 {[%clk 0:02:05]}  Bc5 {[%clk 0:02:47]} 14. Bxc5 {[%clk 0:02:06]}  Qxc5 {[%clk 0:02:47]} 15. Kf3 {[%clk 0:02:06]}  Ba6 {[%clk 0:02:46]} 16. Qa4 {[%clk 0:02:04]}  Qb6 {[%clk 0:02:42]} 17. c5 {[%clk 0:02:01]}  Bb5 {[%clk 0:02:34]} 18. Bxb5 {[%clk 0:01:32]}  Qxb5 {[%clk 0:02:34]} 19. Qxb5 {[%clk 0:01:31]}  cxb5 {[%clk 0:02:34]} 20. Rhd1 {[%clk 0:01:30]}  Nd5 {[%clk 0:02:29]} 21. Nd3 {[%clk 0:01:29]}  h6 {[%clk 0:02:26]} 22. Rac1 {[%clk 0:01:29]}  Rc8 {[%clk 0:02:23]} 23. a3 {[%clk 0:01:25]}  a5 {[%clk 0:02:22]} 24. g4 {[%clk 0:01:20]}  Rf8 {[%clk 0:02:19]} 25. gxf5 {[%clk 0:01:20]}  Rxf5 {[%clk 0:02:19]} 26. Ke4 {[%clk 0:01:19]}  Ke7 {[%clk 0:02:16]} 27. Rg1 {[%clk 0:01:19]}  g5 {[%clk 0:02:15]} 28. fxg5 {[%clk 0:01:17]}  hxg5 {[%clk 0:02:15]} 29. Rcf1 {[%clk 0:01:17]}  Rcf8 {[%clk 0:02:11]} 30. Rxf5 {[%clk 0:01:17]}  Rxf5 {[%clk 0:02:11]} 31. Rh1 {[%clk 0:01:15]}  g4 {[%clk 0:02:06]} 32. Re1 {[%clk 0:01:04]}  Rh5 {[%clk 0:02:00]} 33. Nf4 {[%clk 0:00:51]}  Nxf4 {[%clk 0:01:58]} 34. Kxf4 {[%clk 0:00:51]}  Rxh2 {[%clk 0:01:58]} 35. b4 {[%clk 0:00:50]}  axb4 {[%clk 0:01:58]} 36. axb4 {[%clk 0:00:51]}  Rb2 {[%clk 0:01:59]} 37. Re4 {[%clk 0:00:50]}  Rg2 {[%clk 0:01:56]} 38. Re3 {[%clk 0:00:50]}  Kf7 {[%clk 0:01:51]} 39. Rd3 {[%clk 0:00:50]}  Ke7 {[%clk 0:01:51]} 40. Rc3 {[%clk 0:00:43]}  Rb2 {[%clk 0:01:50]} 41. Kxg4 {[%clk 0:00:42]}  Rxb4+ {[%clk 0:01:50]} 42. Kf3 {[%clk 0:00:41]}  Rc4 {[%clk 0:01:44]} 43. Rxc4 {[%clk 0:00:41]}  bxc4 {[%clk 0:01:45]} 44. Ke4 {[%clk 0:00:42]}  Kd8 {[%clk 0:01:45]} 45. Kd4 {[%clk 0:00:42]}  Kc7 {[%clk 0:01:46]} 46. Kc3 {[%clk 0:00:38]}  Kb7 {[%clk 0:01:45]} 47. Kb4 {[%clk 0:00:36]}  Kc7 {[%clk 0:01:43]} 48. Kc3 {[%clk 0:00:36]}  Kb7 {[%clk 0:01:33]} 49. Kb4 {[%clk 0:00:35]}  Kc7 {[%clk 0:01:31]} 50. Kc3 {[%clk 0:00:34]} 1/2-1/2


[Site "https://www.chess.com"]

[Event "Titled Tuesday Blitz July 25 Early 2023"]
[White "Girinath, P.D.S."]
[Black "brm72"]
[WhiteFideId "5000572"]
[WhiteElo "2335"]
[BlackElo "2651"]
[Result "0-1"]
[Round "1"]
[TimeControl "180+2"]
[Date "2023.07.25"]
[WhiteClock "0:00:01"]
[BlackClock "0:00:13"]
[Board "153"]

1. e4 {[%clk 0:02:53]}  c6 {[%clk 0:02:59]} 2. d3 {[%clk 0:02:48]}  d5 {[%clk 0:02:59]} 3. Nd2 {[%clk 0:02:48]}  e5 {[%clk 0:02:59]} 4. Ngf3 {[%clk 0:02:48]}  Bd6 {[%clk 0:02:58]} 5. g3 {[%clk 0:02:44]}  Nf6 {[%clk 0:02:58]} 6. Bg2 {[%clk 0:02:44]}  O-O {[%clk 0:02:58]} 7. O-O {[%clk 0:02:44]}  Re8 {[%clk 0:02:58]} 8. b3 {[%clk 0:02:42]}  Bg4 {[%clk 0:02:57]} 9. h3 {[%clk 0:02:41]}  Bh5 {[%clk 0:02:57]} 10. Bb2 {[%clk 0:02:40]}  Nbd7 {[%clk 0:02:57]} 11. Qe1 {[%clk 0:02:35]}  a5 {[%clk 0:02:52]} 12. a3 {[%clk 0:02:35]}  Qc7 {[%clk 0:02:50]} 13. Nh4 {[%clk 0:02:28]}  a4 {[%clk 0:02:43]} 14. b4 {[%clk 0:02:26]}  Rad8 {[%clk 0:02:42]} 15. c4 {[%clk 0:02:22]}  dxe4 {[%clk 0:02:39]} 16. dxe4 {[%clk 0:02:20]}  c5 {[%clk 0:02:21]} 17. b5 {[%clk 0:02:17]}  Nb6 {[%clk 0:02:21]} 18. g4 {[%clk 0:02:03]}  Bg6 {[%clk 0:02:20]} 19. Qe2 {[%clk 0:02:02]}  Bf8 {[%clk 0:02:18]} 20. Rad1 {[%clk 0:01:57]}  Rd7 {[%clk 0:02:16]} 21. Nxg6 {[%clk 0:01:50]}  hxg6 {[%clk 0:02:15]} 22. Nb1 {[%clk 0:01:47]}  Red8 {[%clk 0:02:09]} 23. Nc3 {[%clk 0:01:28]}  Rxd1 {[%clk 0:02:06]} 24. Rxd1 {[%clk 0:01:28]}  Rxd1+ {[%clk 0:02:04]} 25. Nxd1 {[%clk 0:01:29]}  Ne8 {[%clk 0:01:59]} 26. Ne3 {[%clk 0:01:24]}  f6 {[%clk 0:01:56]} 27. Qc2 {[%clk 0:01:11]}  Nd6 {[%clk 0:01:50]} 28. Bf1 {[%clk 0:01:05]}  Qf7 {[%clk 0:01:14]} 29. Bd3 {[%clk 0:00:50]}  Qe6 {[%clk 0:01:07]} 30. Bc3 {[%clk 0:00:44]}  Kf7 {[%clk 0:00:46]} 31. Ba5 {[%clk 0:00:41]}  Nd7 {[%clk 0:00:44]} 32. Bc7 {[%clk 0:00:32]}  Qe8 {[%clk 0:00:31]} 33. Bxd6 {[%clk 0:00:30]}  Bxd6 {[%clk 0:00:32]} 34. Qxa4 {[%clk 0:00:30]}  Nf8 {[%clk 0:00:30]} 35. Qa7 {[%clk 0:00:28]}  Qd7 {[%clk 0:00:29]} 36. Nd5 {[%clk 0:00:28]}  Ne6 {[%clk 0:00:28]} 37. a4 {[%clk 0:00:27]}  Nf4 {[%clk 0:00:21]} 38. Bf1 {[%clk 0:00:18]}  f5 {[%clk 0:00:19]} 39. exf5 {[%clk 0:00:12]}  gxf5 {[%clk 0:00:20]} 40. Nxf4 {[%clk 0:00:12]}  exf4 {[%clk 0:00:20]} 41. g5 {[%clk 0:00:11]}  f3 {[%clk 0:00:20]} 42. a5 {[%clk 0:00:09]}  Kg6 {[%clk 0:00:17]} 43. a6 {[%clk 0:00:09]}  Qe6 {[%clk 0:00:17]} 44. Qxb7 {[%clk 0:00:09]}  Qe5 {[%clk 0:00:17]} 45. Bg2 {[%clk 0:00:02]}  Qe1+ {[%clk 0:00:12]} 46. Bf1 {[%clk 0:00:01]}  Bh2+ {[%clk 0:00:13]} 47. Kxh2 {[%clk 0:00:01]}  Qxf2+ {[%clk 0:00:13]} 0-1


[Site "https://www.chess.com"]

[Event "Titled Tuesday Blitz July 25 Early 2023"]
[White "Iskusnyh, Sergei"]
[Black "Dwilewicz, Katarzyna"]
[WhiteFideId "4120027"]
[BlackFideId "1148486"]
[WhiteElo "2649"]
[BlackElo "2332"]
[Result "0-1"]
[Round "1"]
[TimeControl "180+2"]
[Date "2023.07.25"]
[WhiteClock "0:00:04"]
[BlackClock "0:00:18"]
[Board "154"]

1. d4 {[%clk 0:02:58]}  d5 {[%clk 0:02:58]} 2. c4 {[%clk 0:02:58]}  dxc4 {[%clk 0:02:58]} 3. e3 {[%clk 0:02:57]}  Nf6 {[%clk 0:02:58]} 4. Bxc4 {[%clk 0:02:56]}  c5 {[%clk 0:02:56]} 5. Nf3 {[%clk 0:02:55]}  e6 {[%clk 0:02:54]} 6. O-O {[%clk 0:02:53]}  Nc6 {[%clk 0:02:54]} 7. a3 {[%clk 0:02:47]}  a6 {[%clk 0:02:52]} 8. Nc3 {[%clk 0:02:45]}  Be7 {[%clk 0:02:51]} 9. dxc5 {[%clk 0:02:41]}  Qxd1 {[%clk 0:02:50]} 10. Rxd1 {[%clk 0:02:40]}  Bxc5 {[%clk 0:02:51]} 11. b4 {[%clk 0:02:40]}  Ba7 {[%clk 0:02:44]} 12. Bb2 {[%clk 0:02:39]}  Ke7 {[%clk 0:02:42]} 13. Nd2 {[%clk 0:02:32]}  b5 {[%clk 0:02:41]} 14. Be2 {[%clk 0:02:30]}  Bb7 {[%clk 0:02:39]} 15. Nce4 {[%clk 0:02:09]}  Rhd8 {[%clk 0:02:16]} 16. Nxf6 {[%clk 0:02:05]}  gxf6 {[%clk 0:02:15]} 17. Ne4 {[%clk 0:02:04]}  Ne5 {[%clk 0:02:06]} 18. Nc5 {[%clk 0:01:52]}  Bxc5 {[%clk 0:02:00]} 19. bxc5 {[%clk 0:01:53]}  Rg8 {[%clk 0:01:56]} 20. Bf1 {[%clk 0:01:31]}  Nf3+ {[%clk 0:01:49]} 21. Kh1 {[%clk 0:01:28]}  Nh4 {[%clk 0:01:49]} 22. c6 {[%clk 0:01:08]}  Bxc6 {[%clk 0:01:48]} 23. Rac1 {[%clk 0:01:09]}  Rac8 {[%clk 0:01:39]} 24. Bc3 {[%clk 0:00:50]}  f5 {[%clk 0:01:03]} 25. Bb4+ {[%clk 0:00:47]}  Kf6 {[%clk 0:01:01]} 26. Bc3+ {[%clk 0:00:47]}  Ke7 {[%clk 0:01:01]} 27. Bb4+ {[%clk 0:00:38]}  Kf6 {[%clk 0:01:01]} 28. f3 {[%clk 0:00:38]}  Bd5 {[%clk 0:00:46]} 29. Be1 {[%clk 0:00:29]}  Nxf3 {[%clk 0:00:28]} 30. Rxc8 {[%clk 0:00:23]}  Rxc8 {[%clk 0:00:28]} 31. Rxd5 {[%clk 0:00:16]}  exd5 {[%clk 0:00:19]} 32. gxf3 {[%clk 0:00:15]}  Rc1 {[%clk 0:00:20]} 33. Bh4+ {[%clk 0:00:15]}  Ke6 {[%clk 0:00:21]} 34. Kg2 {[%clk 0:00:15]}  Ra1 {[%clk 0:00:21]} 35. Bd8 {[%clk 0:00:07]}  Rxa3 {[%clk 0:00:21]} 36. Kg3 {[%clk 0:00:07]}  Ra1 {[%clk 0:00:20]} 37. Bh3 {[%clk 0:00:06]}  b4 {[%clk 0:00:20]} 38. Kf4 {[%clk 0:00:06]}  b3 {[%clk 0:00:20]} 39. Bxf5+ {[%clk 0:00:06]}  Kd6 {[%clk 0:00:19]} 40. Bf6 {[%clk 0:00:04]}  Rh1 {[%clk 0:00:18]} 0-1


[Site "https://www.chess.com"]

[Event "Titled Tuesday Blitz July 25 Early 2023"]
[White "Wernberg, Hugo"]
[Black "Goryachkina, Aleksandra"]
[WhiteFideId "1737511"]
[BlackFideId "4147103"]
[WhiteElo "2331"]
[BlackElo "2647"]
[Result "1/2-1/2"]
[Round "1"]
[TimeControl "180+2"]
[Date "2023.07.25"]
[WhiteClock "0:00:07"]
[BlackClock "0:00:06"]
[Board "155"]

1. d4 {[%clk 0:02:58]}  Nf6 {[%clk 0:02:59]} 2. c4 {[%clk 0:02:55]}  e6 {[%clk 0:02:59]} 3. Nf3 {[%clk 0:02:53]}  d5 {[%clk 0:02:59]} 4. g3 {[%clk 0:02:53]}  dxc4 {[%clk 0:02:56]} 5. Bg2 {[%clk 0:02:53]}  c6 {[%clk 0:02:50]} 6. O-O {[%clk 0:02:49]}  b5 {[%clk 0:02:48]} 7. a4 {[%clk 0:02:39]}  Bb7 {[%clk 0:02:42]} 8. Ne5 {[%clk 0:02:24]}  a6 {[%clk 0:02:37]} 9. b3 {[%clk 0:02:21]}  cxb3 {[%clk 0:02:20]} 10. Qxb3 {[%clk 0:02:22]}  Be7 {[%clk 0:02:09]} 11. axb5 {[%clk 0:01:54]}  axb5 {[%clk 0:02:08]} 12. Rxa8 {[%clk 0:01:52]}  Bxa8 {[%clk 0:02:09]} 13. Rd1 {[%clk 0:01:39]}  O-O {[%clk 0:02:07]} 14. Nc3 {[%clk 0:01:39]}  Nd5 {[%clk 0:01:57]} 15. e4 {[%clk 0:01:16]}  Nxc3 {[%clk 0:01:51]} 16. Qxc3 {[%clk 0:01:17]}  c5 {[%clk 0:01:43]} 17. Be3 {[%clk 0:00:58]}  Nc6 {[%clk 0:01:03]} 18. Nf3 {[%clk 0:00:22]}  c4 {[%clk 0:00:38]} 19. d5 {[%clk 0:00:19]}  exd5 {[%clk 0:00:23]} 20. exd5 {[%clk 0:00:20]}  Na5 {[%clk 0:00:23]} 21. d6 {[%clk 0:00:11]}  Bf6 {[%clk 0:00:23]} 22. Bd4 {[%clk 0:00:09]}  Nb3 {[%clk 0:00:19]} 23. Bxf6 {[%clk 0:00:07]}  Qxf6 {[%clk 0:00:20]} 24. Ne5 {[%clk 0:00:02]}  Bxg2 {[%clk 0:00:18]} 25. Kxg2 {[%clk 0:00:03]}  h6 {[%clk 0:00:13]} 26. f4 {[%clk 0:00:03]}  Rd8 {[%clk 0:00:11]} 27. Qb4 {[%clk 0:00:03]}  Kh7 {[%clk 0:00:06]} 28. Qxb5 {[%clk 0:00:02]}  Rxd6 {[%clk 0:00:05]} 29. Rxd6 {[%clk 0:00:03]}  Qxd6 {[%clk 0:00:06]} 30. Qxc4 {[%clk 0:00:03]}  Qd2+ {[%clk 0:00:06]} 31. Kh3 {[%clk 0:00:01]}  f6 {[%clk 0:00:03]} 32. Nf3 {[%clk 0:00:01]}  Qd7+ {[%clk 0:00:03]} 33. Kg2 {[%clk 0:00:01]}  Qb7 {[%clk 0:00:03]} 34. Qc2+ {[%clk 0:00:01]}  g6 {[%clk 0:00:03]} 35. Qe2 {[%clk 0:00:02]}  Kg7 {[%clk 0:00:03]} 36. Qf2 {[%clk 0:00:02]}  Qc7 {[%clk 0:00:02]} 37. h3 {[%clk 0:00:03]}  Nc5 {[%clk 0:00:02]} 38. Kh2 {[%clk 0:00:03]}  Ne4 {[%clk 0:00:02]} 39. Qe2 {[%clk 0:00:04]}  f5 {[%clk 0:00:02]} 40. Nh4 {[%clk 0:00:04]}  Qc3 {[%clk 0:00:02]} 41. Qf3 {[%clk 0:00:04]}  Qd2+ {[%clk 0:00:02]} 42. Ng2 {[%clk 0:00:05]}  Qd4 {[%clk 0:00:02]} 43. g4 {[%clk 0:00:03]}  Qd6 {[%clk 0:00:02]} 44. gxf5 {[%clk 0:00:03]}  gxf5 {[%clk 0:00:03]} 45. Ne3 {[%clk 0:00:03]}  Kf6 {[%clk 0:00:03]} 46. Ng2 {[%clk 0:00:02]}  Qd2 {[%clk 0:00:03]} 47. Qe3 {[%clk 0:00:02]}  Qxe3 {[%clk 0:00:03]} 48. Nxe3 {[%clk 0:00:03]}  Nd6 {[%clk 0:00:04]} 49. Kg2 {[%clk 0:00:04]}  Ne4 {[%clk 0:00:04]} 50. Kf3 {[%clk 0:00:05]}  Nd2+ {[%clk 0:00:05]} 51. Ke2 {[%clk 0:00:05]}  Ne4 {[%clk 0:00:05]} 52. Kf3 {[%clk 0:00:06]}  Nd2+ {[%clk 0:00:06]} 53. Ke2 {[%clk 0:00:06]}  Ne4 {[%clk 0:00:06]} 54. Kf3 {[%clk 0:00:07]} 1/2-1/2


[Site "https://www.chess.com"]

[Event "Titled Tuesday Blitz July 25 Early 2023"]
[White "Aldokhin, Ivan"]
[Black "chessmateto"]
[WhiteFideId "24115720"]
[WhiteElo "2645"]
[BlackElo "2331"]
[Result "0-1"]
[Round "1"]
[TimeControl "180+2"]
[Date "2023.07.25"]
[WhiteClock "0:00:02"]
[BlackClock "0:00:10"]
[Board "156"]

1. e4 {[%clk 0:02:57]}  c6 {[%clk 0:03:00]} 2. Nc3 {[%clk 0:02:56]}  d5 {[%clk 0:03:00]} 3. d4 {[%clk 0:02:57]}  dxe4 {[%clk 0:02:59]} 4. Nxe4 {[%clk 0:02:58]}  Nf6 {[%clk 0:03:00]} 5. Nxf6+ {[%clk 0:02:58]}  exf6 {[%clk 0:03:00]} 6. c3 {[%clk 0:02:59]}  Bd6 {[%clk 0:03:00]} 7. Bd3 {[%clk 0:03:00]}  O-O {[%clk 0:02:59]} 8. Ne2 {[%clk 0:03:01]}  Re8 {[%clk 0:02:59]} 9. Qc2 {[%clk 0:03:02]}  h5 {[%clk 0:02:58]} 10. O-O {[%clk 0:03:02]}  Nd7 {[%clk 0:02:54]} 11. Ng3 {[%clk 0:03:00]}  Bxg3 {[%clk 0:02:33]} 12. hxg3 {[%clk 0:02:58]}  Nf8 {[%clk 0:02:33]} 13. Bd2 {[%clk 0:02:51]}  Be6 {[%clk 0:02:30]} 14. Rae1 {[%clk 0:02:47]}  b5 {[%clk 0:02:25]} 15. b3 {[%clk 0:02:34]}  Qd7 {[%clk 0:02:20]} 16. Qd1 {[%clk 0:02:04]}  g6 {[%clk 0:02:18]} 17. Qf3 {[%clk 0:02:03]}  Kg7 {[%clk 0:01:53]} 18. Qf4 {[%clk 0:01:50]}  g5 {[%clk 0:01:38]} 19. Qe4 {[%clk 0:01:06]}  Bg4 {[%clk 0:01:32]} 20. Qxe8 {[%clk 0:00:43]}  Rxe8 {[%clk 0:01:33]} 21. Rxe8 {[%clk 0:00:43]}  Qxe8 {[%clk 0:01:33]} 22. f3 {[%clk 0:00:43]}  Be6 {[%clk 0:01:30]} 23. f4 {[%clk 0:00:43]}  g4 {[%clk 0:01:14]} 24. f5 {[%clk 0:00:40]}  Bd5 {[%clk 0:01:12]} 25. Re1 {[%clk 0:00:35]}  Qd7 {[%clk 0:01:09]} 26. Kh2 {[%clk 0:00:25]}  c5 {[%clk 0:01:05]} 27. c4 {[%clk 0:00:15]}  bxc4 {[%clk 0:01:01]} 28. bxc4 {[%clk 0:00:15]}  Bxc4 {[%clk 0:00:55]} 29. Bxc4 {[%clk 0:00:13]}  Qxd4 {[%clk 0:00:55]} 30. Bb3 {[%clk 0:00:13]}  Qxd2 {[%clk 0:00:27]} 31. Re7 {[%clk 0:00:13]}  Nh7 {[%clk 0:00:25]} 32. Bxf7 {[%clk 0:00:09]}  Qd6 {[%clk 0:00:21]} 33. Rxa7 {[%clk 0:00:07]}  Kh6 {[%clk 0:00:18]} 34. Bxh5 {[%clk 0:00:06]}  Kxh5 {[%clk 0:00:17]} 35. Rxh7+ {[%clk 0:00:06]}  Kg5 {[%clk 0:00:18]} 36. a4 {[%clk 0:00:04]}  Kxf5 {[%clk 0:00:17]} 37. a5 {[%clk 0:00:04]}  Qa6 {[%clk 0:00:17]} 38. Rh5+ {[%clk 0:00:05]}  Kg6 {[%clk 0:00:16]} 39. Rxc5 {[%clk 0:00:06]}  f5 {[%clk 0:00:16]} 40. Rd5 {[%clk 0:00:04]}  Kg5 {[%clk 0:00:16]} 41. Rc5 {[%clk 0:00:05]}  Qe2 {[%clk 0:00:13]} 42. a6 {[%clk 0:00:03]}  Qxa6 {[%clk 0:00:13]} 43. Rd5 {[%clk 0:00:02]}  Qh6+ {[%clk 0:00:12]} 44. Kg1 {[%clk 0:00:02]}  Qc6 {[%clk 0:00:12]} 45. Rd2 {[%clk 0:00:02]}  f4 {[%clk 0:00:11]} 46. Rf2 {[%clk 0:00:02]}  fxg3 {[%clk 0:00:11]} 47. Rf1 {[%clk 0:00:02]}  Qc5+ {[%clk 0:00:11]} 48. Kh1 {[%clk 0:00:03]}  Qf2 {[%clk 0:00:12]} 49. Rg1 {[%clk 0:00:02]}  Kf4 {[%clk 0:00:12]} 50. Rd1 {[%clk 0:00:02]}  Ke3 {[%clk 0:00:13]} 51. Rc1 {[%clk 0:00:02]}  Qd2 {[%clk 0:00:12]} 52. Rf1 {[%clk 0:00:02]}  Qd6 {[%clk 0:00:10]} 53. Re1+ {[%clk 0:00:02]}  Kf2 {[%clk 0:00:10]} 54. Rf1+ {[%clk 0:00:02]}  Ke2 {[%clk 0:00:10]} 0-1


[Site "https://www.chess.com"]

[Event "Titled Tuesday Blitz July 25 Early 2023"]
[White "K2JW"]
[Black "Popilski, Gil"]
[BlackFideId "2809060"]
[WhiteElo "2329"]
[BlackElo "2641"]
[Result "1-0"]
[Round "1"]
[TimeControl "180+2"]
[Date "2023.07.25"]
[WhiteClock "0:00:34"]
[BlackClock "0:01:57"]
[Board "157"]

1. d4 {[%clk 0:03:00]}  Nf6 {[%clk 0:02:59]} 2. c4 {[%clk 0:02:56]}  e6 {[%clk 0:02:59]} 3. Nf3 {[%clk 0:02:55]}  Bb4+ {[%clk 0:02:58]} 4. Bd2 {[%clk 0:02:52]}  a5 {[%clk 0:02:54]} 5. a3 {[%clk 0:02:50]}  Bxd2+ {[%clk 0:02:53]} 6. Qxd2 {[%clk 0:02:40]}  a4 {[%clk 0:02:54]} 7. Nc3 {[%clk 0:02:39]}  d6 {[%clk 0:02:53]} 8. e4 {[%clk 0:02:34]}  Nc6 {[%clk 0:02:48]} 9. Bd3 {[%clk 0:02:31]}  Bd7 {[%clk 0:02:45]} 10. O-O {[%clk 0:02:06]}  e5 {[%clk 0:02:44]} 11. Bc2 {[%clk 0:02:01]}  exd4 {[%clk 0:02:40]} 12. Nxd4 {[%clk 0:02:01]}  O-O {[%clk 0:02:40]} 13. f4 {[%clk 0:01:34]}  Na5 {[%clk 0:02:34]} 14. Qd3 {[%clk 0:01:30]}  Ng4 {[%clk 0:02:19]} 15. h3 {[%clk 0:01:19]}  Nh6 {[%clk 0:02:18]} 16. e5 {[%clk 0:01:04]}  g6 {[%clk 0:02:15]} 17. Nd5 {[%clk 0:01:03]}  dxe5 {[%clk 0:02:09]} 18. fxe5 {[%clk 0:01:03]}  Nf5 {[%clk 0:02:05]} 19. Nxf5 {[%clk 0:01:00]}  Bxf5 {[%clk 0:02:04]} 20. Rxf5 {[%clk 0:00:58]}  gxf5 {[%clk 0:02:05]} 21. Nf6+ {[%clk 0:00:43]}  Kh8 {[%clk 0:01:58]} 22. Qxf5 {[%clk 0:00:41]}  Qd4+ {[%clk 0:01:57]} 23. Kh2 {[%clk 0:00:39]}  Qh4 {[%clk 0:01:57]} 24. Nh5 {[%clk 0:00:34]} 1-0


[Site "https://www.chess.com"]

[Event "Titled Tuesday Blitz July 25 Early 2023"]
[White "Prydun, Andriy"]
[Black "Martic, Ivan"]
[WhiteFideId "14145898"]
[BlackFideId "929301"]
[WhiteElo "2322"]
[BlackElo "2626"]
[Result "0-1"]
[Round "1"]
[TimeControl "180+2"]
[Date "2023.07.25"]
[WhiteClock "0:00:16"]
[BlackClock "0:01:13"]
[Board "161"]

1. e4 {[%clk 0:03:00]}  c5 {[%clk 0:02:59]} 2. Nf3 {[%clk 0:03:01]}  e6 {[%clk 0:02:59]} 3. c3 {[%clk 0:03:00]}  Nf6 {[%clk 0:02:58]} 4. e5 {[%clk 0:03:01]}  Nd5 {[%clk 0:02:58]} 5. Na3 {[%clk 0:02:50]}  d6 {[%clk 0:02:56]} 6. exd6 {[%clk 0:02:47]}  Bxd6 {[%clk 0:02:57]} 7. Nc4 {[%clk 0:02:47]}  Be7 {[%clk 0:02:56]} 8. a4 {[%clk 0:02:42]}  O-O {[%clk 0:02:55]} 9. d3 {[%clk 0:02:42]}  Nc6 {[%clk 0:02:55]} 10. Be2 {[%clk 0:02:42]}  b6 {[%clk 0:02:53]} 11. O-O {[%clk 0:02:41]}  Bb7 {[%clk 0:02:53]} 12. Qc2 {[%clk 0:02:35]}  Rc8 {[%clk 0:02:51]} 13. Be3 {[%clk 0:02:28]}  Nxe3 {[%clk 0:02:37]} 14. fxe3 {[%clk 0:02:22]}  Qc7 {[%clk 0:02:37]} 15. Rf2 {[%clk 0:02:04]}  a6 {[%clk 0:02:30]} 16. d4 {[%clk 0:02:03]}  b5 {[%clk 0:02:25]} 17. axb5 {[%clk 0:02:01]}  axb5 {[%clk 0:02:26]} 18. Nce5 {[%clk 0:02:01]}  Nxe5 {[%clk 0:02:23]} 19. Nxe5 {[%clk 0:02:00]}  Bd6 {[%clk 0:02:20]} 20. Nf3 {[%clk 0:01:52]}  Qb6 {[%clk 0:02:14]} 21. Ng5 {[%clk 0:01:39]}  g6 {[%clk 0:02:14]} 22. Qd3 {[%clk 0:00:52]}  b4 {[%clk 0:01:59]} 23. Raf1 {[%clk 0:00:48]}  f5 {[%clk 0:01:46]} 24. Bf3 {[%clk 0:00:34]}  Ba6 {[%clk 0:01:43]} 25. c4 {[%clk 0:00:29]}  cxd4 {[%clk 0:01:43]} 26. b3 {[%clk 0:00:26]}  dxe3 {[%clk 0:01:43]} 27. Re2 {[%clk 0:00:25]}  Bc5 {[%clk 0:01:40]} 28. Nxe6 {[%clk 0:00:24]}  Rfd8 {[%clk 0:01:29]} 29. Nxd8 {[%clk 0:00:23]}  Rxd8 {[%clk 0:01:30]} 30. Bd5+ {[%clk 0:00:22]}  Kg7 {[%clk 0:01:30]} 31. g4 {[%clk 0:00:22]}  Qf6 {[%clk 0:01:24]} 32. gxf5 {[%clk 0:00:22]}  Qg5+ {[%clk 0:01:24]} 33. Kh1 {[%clk 0:00:22]}  Bb7 {[%clk 0:01:15]} 34. fxg6 {[%clk 0:00:20]}  Rxd5 {[%clk 0:01:15]} 35. Rf7+ {[%clk 0:00:18]}  Kg8 {[%clk 0:01:14]} 36. gxh7+ {[%clk 0:00:17]}  Kxf7 {[%clk 0:01:14]} 37. cxd5 {[%clk 0:00:16]}  Bxd5+ {[%clk 0:01:13]} 0-1


[Site "https://www.chess.com"]